[Event "Titled Tuesday Blitz August 22 Late 2023"]
[White "Cheng, Xiao"]
[Black "Zhu, Jiner"]
[WhiteFideId "2022915"]
[BlackFideId "8608059"]
[WhiteElo "2491"]
[BlackElo "2667"]
[Result "1/2-1/2"]
[Round "8"]
[TimeControl "180+1"]
[Date "2023.08.22"]
[WhiteClock "0:00:05"]
[BlackClock "0:00:09"]
[Board "44"]

1. e4 {[%clk 0:03:00]}  e5 {[%clk 0:02:59]} 2. Bc4 {[%clk 0:02:58]}  Nf6 {[%clk 0:02:57]} 3. Nc3 {[%clk 0:02:57]}  Bc5 {[%clk 0:02:51]} 4. d3 {[%clk 0:02:54]}  h6 {[%clk 0:02:50]} 5. f4 {[%clk 0:02:51]}  exf4 {[%clk 0:02:43]} 6. Bxf4 {[%clk 0:02:50]}  d6 {[%clk 0:02:43]} 7. Qd2 {[%clk 0:02:48]}  Nc6 {[%clk 0:02:41]} 8. Nf3 {[%clk 0:02:47]}  Be6 {[%clk 0:02:41]} 9. Nd5 {[%clk 0:02:41]}  Bxd5 {[%clk 0:02:33]} 10. exd5 {[%clk 0:02:37]}  Ne7 {[%clk 0:02:33]} 11. O-O-O {[%clk 0:02:32]}  Qd7 {[%clk 0:02:32]} 12. Rde1 {[%clk 0:02:21]}  O-O-O {[%clk 0:02:31]} 13. Be3 {[%clk 0:02:12]}  Bxe3 {[%clk 0:02:30]} 14. Qxe3 {[%clk 0:02:12]}  Nexd5 {[%clk 0:02:25]} 15. Qxa7 {[%clk 0:02:11]}  Nb6 {[%clk 0:02:22]} 16. Kb1 {[%clk 0:02:01]}  Rhe8 {[%clk 0:02:14]} 17. a4 {[%clk 0:01:52]}  Qxa4 {[%clk 0:02:02]} 18. Qxa4 {[%clk 0:01:49]}  Nxa4 {[%clk 0:02:02]} 19. Bxf7 {[%clk 0:01:48]}  Rxe1+ {[%clk 0:02:03]} 20. Rxe1 {[%clk 0:01:46]}  Rf8 {[%clk 0:02:04]} 21. Be6+ {[%clk 0:01:31]}  Kd8 {[%clk 0:02:03]} 22. b3 {[%clk 0:01:27]}  Nc5 {[%clk 0:01:59]} 23. Bf5 {[%clk 0:01:13]}  Nd5 {[%clk 0:01:57]} 24. Nd4 {[%clk 0:01:11]}  Nc3+ {[%clk 0:01:37]} 25. Kb2 {[%clk 0:01:09]}  Nb5 {[%clk 0:01:37]} 26. Nxb5 {[%clk 0:00:37]}  Rxf5 {[%clk 0:01:36]} 27. Nd4 {[%clk 0:00:38]}  Rf4 {[%clk 0:01:34]} 28. Kc3 {[%clk 0:00:35]}  Kd7 {[%clk 0:01:33]} 29. Re2 {[%clk 0:00:35]}  c6 {[%clk 0:01:29]} 30. g3 {[%clk 0:00:35]}  Rf1 {[%clk 0:01:28]} 31. b4 {[%clk 0:00:33]}  Na4+ {[%clk 0:01:28]} 32. Kb3 {[%clk 0:00:32]}  b5 {[%clk 0:01:28]} 33. c4 {[%clk 0:00:22]}  Rb1+ {[%clk 0:01:18]} 34. Ka3 {[%clk 0:00:21]}  Nc3 {[%clk 0:00:25]} 35. Rc2 {[%clk 0:00:20]}  Nd1 {[%clk 0:00:18]} 36. cxb5 {[%clk 0:00:20]}  cxb5 {[%clk 0:00:19]} 37. Nxb5 {[%clk 0:00:20]}  Ke6 {[%clk 0:00:13]} 38. Nc3 {[%clk 0:00:18]}  Nxc3 {[%clk 0:00:13]} 39. Rxc3 {[%clk 0:00:19]}  Kd5 {[%clk 0:00:11]} 40. Rb3 {[%clk 0:00:19]}  Ra1+ {[%clk 0:00:11]} 41. Kb2 {[%clk 0:00:19]}  Ra6 {[%clk 0:00:11]} 42. b5 {[%clk 0:00:19]}  Rb6 {[%clk 0:00:12]} 43. Kc3 {[%clk 0:00:19]}  Kc5 {[%clk 0:00:12]} 44. g4 {[%clk 0:00:19]}  Rxb5 {[%clk 0:00:11]} 45. Rxb5+ {[%clk 0:00:19]}  Kxb5 {[%clk 0:00:12]} 46. Kd4 {[%clk 0:00:20]}  Kc6 {[%clk 0:00:13]} 47. h4 {[%clk 0:00:20]}  g6 {[%clk 0:00:11]} 48. Kc4 {[%clk 0:00:18]}  d5+ {[%clk 0:00:10]} 49. Kd4 {[%clk 0:00:19]}  Kd6 {[%clk 0:00:10]} 50. g5 {[%clk 0:00:15]}  h5 {[%clk 0:00:10]} 51. Ke3 {[%clk 0:00:15]}  Ke5 {[%clk 0:00:09]} 52. d4+ {[%clk 0:00:15]}  Ke6 {[%clk 0:00:06]} 53. Kf4 {[%clk 0:00:11]}  Kd6 {[%clk 0:00:06]} 54. Kf3 {[%clk 0:00:09]}  Kc6 {[%clk 0:00:06]} 55. Kf4 {[%clk 0:00:07]}  Kd6 {[%clk 0:00:07]} 56. Kf3 {[%clk 0:00:08]}  Ke7 {[%clk 0:00:06]} 57. Kf4 {[%clk 0:00:07]}  Ke6 {[%clk 0:00:07]} 58. Ke3 {[%clk 0:00:07]}  Kf5 {[%clk 0:00:08]} 59. Kf3 {[%clk 0:00:07]}  Ke6 {[%clk 0:00:09]} 60. Kf4 {[%clk 0:00:05]}  Kd6 {[%clk 0:00:09]} 1/2-1/2


[Site "https://www.chess.com"]

[Event "Titled Tuesday Blitz August 22 Late 2023"]
[White "Shuvalova, Polina"]
[Black "Pein, Jonathan"]
[WhiteFideId "24171760"]
[BlackFideId "417092"]
[WhiteElo "2663"]
[BlackElo "2467"]
[Result "1/2-1/2"]
[Round "8"]
[TimeControl "180+1"]
[Date "2023.08.22"]
[WhiteClock "0:00:10"]
[BlackClock "0:00:08"]
[Board "45"]

1. e4 {[%clk 0:03:00]}  e5 {[%clk 0:03:00]} 2. Nf3 {[%clk 0:03:00]}  d6 {[%clk 0:03:00]} 3. d4 {[%clk 0:02:59]}  exd4 {[%clk 0:03:01]} 4. Nxd4 {[%clk 0:02:59]}  Nf6 {[%clk 0:03:02]} 5. Nc3 {[%clk 0:02:59]}  g6 {[%clk 0:03:02]} 6. Bc4 {[%clk 0:02:49]}  Bg7 {[%clk 0:03:03]} 7. O-O {[%clk 0:02:49]}  O-O {[%clk 0:03:03]} 8. Bg5 {[%clk 0:02:49]}  h6 {[%clk 0:03:03]} 9. Bh4 {[%clk 0:02:45]}  Nc6 {[%clk 0:03:02]} 10. Nxc6 {[%clk 0:02:45]}  bxc6 {[%clk 0:03:03]} 11. h3 {[%clk 0:02:39]}  g5 {[%clk 0:02:56]} 12. Bg3 {[%clk 0:02:38]}  Rb8 {[%clk 0:02:56]} 13. Rb1 {[%clk 0:02:24]}  Re8 {[%clk 0:02:55]} 14. Bd3 {[%clk 0:02:23]}  Nd7 {[%clk 0:02:51]} 15. Qd2 {[%clk 0:02:14]}  Ne5 {[%clk 0:02:26]} 16. b3 {[%clk 0:02:11]}  Ng6 {[%clk 0:02:24]} 17. Ne2 {[%clk 0:02:08]}  c5 {[%clk 0:02:20]} 18. Rbe1 {[%clk 0:02:07]}  h5 {[%clk 0:02:15]} 19. Nc3 {[%clk 0:02:04]}  h4 {[%clk 0:02:11]} 20. Bh2 {[%clk 0:02:04]}  g4 {[%clk 0:02:11]} 21. hxg4 {[%clk 0:02:02]}  Bxg4 {[%clk 0:02:12]} 22. Nd5 {[%clk 0:02:02]}  h3 {[%clk 0:02:10]} 23. f3 {[%clk 0:01:42]}  Be6 {[%clk 0:02:02]} 24. g4 {[%clk 0:01:38]}  Bxd5 {[%clk 0:01:49]} 25. exd5 {[%clk 0:01:38]}  Ne5 {[%clk 0:01:17]} 26. Be4 {[%clk 0:01:33]}  Qh4 {[%clk 0:01:13]} 27. Qf2 {[%clk 0:01:28]}  Qxf2+ {[%clk 0:01:11]} 28. Kxf2 {[%clk 0:01:28]}  c4 {[%clk 0:01:03]} 29. Kg3 {[%clk 0:01:26]}  Bf6 {[%clk 0:00:49]} 30. Kxh3 {[%clk 0:01:24]}  Kg7 {[%clk 0:00:48]} 31. Bg3 {[%clk 0:01:22]}  Ng6 {[%clk 0:00:45]} 32. f4 {[%clk 0:01:06]}  Rh8+ {[%clk 0:00:40]} 33. Kg2 {[%clk 0:01:06]}  Nh4+ {[%clk 0:00:36]} 34. Bxh4 {[%clk 0:01:02]}  Rxh4 {[%clk 0:00:35]} 35. g5 {[%clk 0:01:00]}  Bd4 {[%clk 0:00:28]} 36. Kg3 {[%clk 0:00:36]}  Rbh8 {[%clk 0:00:27]} 37. Rh1 {[%clk 0:00:35]}  Rxh1 {[%clk 0:00:17]} 38. Rxh1 {[%clk 0:00:36]}  Rxh1 {[%clk 0:00:18]} 39. Bxh1 {[%clk 0:00:36]}  cxb3 {[%clk 0:00:18]} 40. axb3 {[%clk 0:00:34]}  f6 {[%clk 0:00:17]} 41. Be4 {[%clk 0:00:31]}  fxg5 {[%clk 0:00:15]} 42. fxg5 {[%clk 0:00:32]}  Bb6 {[%clk 0:00:12]} 43. Kg4 {[%clk 0:00:30]}  Kf7 {[%clk 0:00:09]} 44. Kf5 {[%clk 0:00:30]}  a5 {[%clk 0:00:06]} 45. Bf3 {[%clk 0:00:30]}  Kg7 {[%clk 0:00:06]} 46. Bh5 {[%clk 0:00:29]}  Kg8 {[%clk 0:00:03]} 47. Ke6 {[%clk 0:00:27]}  Kg7 {[%clk 0:00:03]} 48. Kd7 {[%clk 0:00:26]}  Kg8 {[%clk 0:00:03]} 49. Bg4 {[%clk 0:00:24]}  Kg7 {[%clk 0:00:03]} 50. Bf5 {[%clk 0:00:25]}  Kg8 {[%clk 0:00:04]} 51. c4 {[%clk 0:00:18]}  Kg7 {[%clk 0:00:04]} 52. Kc6 {[%clk 0:00:17]}  Kg8 {[%clk 0:00:05]} 53. Be6+ {[%clk 0:00:11]}  Kg7 {[%clk 0:00:05]} 54. Bf5 {[%clk 0:00:11]}  Kg8 {[%clk 0:00:06]} 55. Kb7 {[%clk 0:00:12]}  Kg7 {[%clk 0:00:06]} 56. c5 {[%clk 0:00:12]}  Bxc5 {[%clk 0:00:04]} 57. Kxc7 {[%clk 0:00:12]}  Bb4 {[%clk 0:00:05]} 58. Kc6 {[%clk 0:00:13]}  Kg8 {[%clk 0:00:05]} 59. Kb5 {[%clk 0:00:14]}  Kg7 {[%clk 0:00:05]} 60. Kc4 {[%clk 0:00:14]}  Bd2 {[%clk 0:00:05]} 61. g6 {[%clk 0:00:14]}  Bb4 {[%clk 0:00:05]} 62. Kb5 {[%clk 0:00:15]}  Kf6 {[%clk 0:00:05]} 63. Kc6 {[%clk 0:00:16]}  Kg7 {[%clk 0:00:06]} 64. Kd7 {[%clk 0:00:16]}  Bc5 {[%clk 0:00:07]} 65. Ke6 {[%clk 0:00:16]}  Bb4 {[%clk 0:00:07]} 66. Bd3 {[%clk 0:00:10]}  Bc5 {[%clk 0:00:08]} 1/2-1/2


[Site "https://www.chess.com"]

[Event "Titled Tuesday Blitz August 22 Late 2023"]
[White "Diaz Perez, Michel Alejandro"]
[Black "Poltorak, Sebastian"]
[WhiteFideId "3517179"]
[BlackFideId "1199498"]
[WhiteElo "2686"]
[BlackElo "2539"]
[Result "1-0"]
[Round "8"]
[TimeControl "180+1"]
[Date "2023.08.22"]
[WhiteClock "0:00:21"]
[BlackClock "0:00:05"]
[Board "50"]

1. e4 {[%clk 0:03:00]}  c6 {[%clk 0:02:59]} 2. c4 {[%clk 0:02:59]}  d5 {[%clk 0:02:58]} 3. exd5 {[%clk 0:03:00]}  cxd5 {[%clk 0:02:59]} 4. cxd5 {[%clk 0:03:01]}  Nf6 {[%clk 0:02:59]} 5. Nc3 {[%clk 0:03:01]}  Nxd5 {[%clk 0:02:59]} 6. d4 {[%clk 0:03:01]}  Nc6 {[%clk 0:03:00]} 7. Bc4 {[%clk 0:02:58]}  Nxc3 {[%clk 0:02:48]} 8. bxc3 {[%clk 0:02:58]}  e6 {[%clk 0:02:48]} 9. Nf3 {[%clk 0:02:57]}  Be7 {[%clk 0:02:48]} 10. O-O {[%clk 0:02:56]}  O-O {[%clk 0:02:48]} 11. Bd3 {[%clk 0:02:55]}  b6 {[%clk 0:02:35]} 12. Qe2 {[%clk 0:02:55]}  Bb7 {[%clk 0:02:34]} 13. Rd1 {[%clk 0:02:51]}  Rc8 {[%clk 0:02:31]} 14. Bf4 {[%clk 0:02:42]}  Na5 {[%clk 0:02:21]} 15. Rac1 {[%clk 0:02:42]}  Qd5 {[%clk 0:02:09]} 16. c4 {[%clk 0:02:35]}  Qh5 {[%clk 0:02:09]} 17. d5 {[%clk 0:02:34]}  Ba3 {[%clk 0:02:04]} 18. dxe6 {[%clk 0:01:42]}  Bxf3 {[%clk 0:01:46]} 19. gxf3 {[%clk 0:01:37]}  Bxc1 {[%clk 0:01:46]} 20. Rxc1 {[%clk 0:01:36]}  fxe6 {[%clk 0:01:42]} 21. Qxe6+ {[%clk 0:01:37]}  Kh8 {[%clk 0:01:43]} 22. Bg3 {[%clk 0:01:30]}  Nb7 {[%clk 0:01:36]} 23. Qe7 {[%clk 0:01:12]}  Nc5 {[%clk 0:01:29]} 24. Bf1 {[%clk 0:01:12]}  Qxf3 {[%clk 0:01:26]} 25. Re1 {[%clk 0:01:07]}  Qf7 {[%clk 0:01:26]} 26. Qh4 {[%clk 0:01:04]}  Rce8 {[%clk 0:01:24]} 27. Rd1 {[%clk 0:00:59]}  Ne4 {[%clk 0:01:22]} 28. Bd3 {[%clk 0:00:49]}  g5 {[%clk 0:00:57]} 29. Qxe4 {[%clk 0:00:39]}  Rxe4 {[%clk 0:00:56]} 30. Bxe4 {[%clk 0:00:40]}  Re8 {[%clk 0:00:47]} 31. Bd5 {[%clk 0:00:37]}  Qf6 {[%clk 0:00:41]} 32. Kg2 {[%clk 0:00:37]}  h5 {[%clk 0:00:41]} 33. h3 {[%clk 0:00:35]}  h4 {[%clk 0:00:38]} 34. Bh2 {[%clk 0:00:35]}  Re2 {[%clk 0:00:38]} 35. Bf3 {[%clk 0:00:34]}  Rxa2 {[%clk 0:00:37]} 36. Re1 {[%clk 0:00:33]}  Kh7 {[%clk 0:00:33]} 37. Re8 {[%clk 0:00:33]}  Qd4 {[%clk 0:00:09]} 38. Be4+ {[%clk 0:00:26]}  Kh6 {[%clk 0:00:09]} 39. Re6+ {[%clk 0:00:26]}  Kh5 {[%clk 0:00:05]} 40. Bg6+ {[%clk 0:00:19]}  Kh6 {[%clk 0:00:05]} 41. Bb1+ {[%clk 0:00:19]}  Kh5 {[%clk 0:00:04]} 42. Bg6+ {[%clk 0:00:17]}  Kh6 {[%clk 0:00:05]} 43. Bf5+ {[%clk 0:00:17]}  Kg7 {[%clk 0:00:02]} 44. Be5+ {[%clk 0:00:17]}  Qxe5 {[%clk 0:00:03]} 45. Rxe5 {[%clk 0:00:18]}  Kf6 {[%clk 0:00:04]} 46. Rd5 {[%clk 0:00:18]}  Ra5 {[%clk 0:00:04]} 47. Rxa5 {[%clk 0:00:18]}  bxa5 {[%clk 0:00:05]} 48. Bd7 {[%clk 0:00:18]}  Ke5 {[%clk 0:00:05]} 49. Kf3 {[%clk 0:00:19]}  Kd4 {[%clk 0:00:05]} 50. Kg4 {[%clk 0:00:19]}  Kxc4 {[%clk 0:00:03]} 51. Kxg5 {[%clk 0:00:19]}  Kb4 {[%clk 0:00:04]} 52. f4 {[%clk 0:00:19]}  a4 {[%clk 0:00:05]} 53. f5 {[%clk 0:00:20]}  a3 {[%clk 0:00:06]} 54. Be6 {[%clk 0:00:20]}  Kc5 {[%clk 0:00:05]} 55. f6 {[%clk 0:00:20]}  Kd6 {[%clk 0:00:05]} 56. Ba2 {[%clk 0:00:21]} 1-0


[Site "https://www.chess.com"]

[Event "Titled Tuesday Blitz August 22 Late 2023"]
[White "ATM622"]
[Black "Alex_Sahakyan2006"]
[WhiteElo "2530"]
[BlackElo "2675"]
[Result "0-1"]
[Round "8"]
[TimeControl "180+1"]
[Date "2023.08.22"]
[WhiteClock "0:00:00"]
[BlackClock "0:00:08"]
[Board "51"]

1. d4 {[%clk 0:02:55]}  f5 {[%clk 0:02:55]} 2. c4 {[%clk 0:02:55]}  Nf6 {[%clk 0:02:54]} 3. g3 {[%clk 0:02:55]}  e6 {[%clk 0:02:53]} 4. Bg2 {[%clk 0:02:54]}  d5 {[%clk 0:02:54]} 5. Nf3 {[%clk 0:02:53]}  c6 {[%clk 0:02:54]} 6. O-O {[%clk 0:02:48]}  Bd6 {[%clk 0:02:54]} 7. Bg5 {[%clk 0:02:44]}  O-O {[%clk 0:02:53]} 8. b3 {[%clk 0:02:41]}  Nbd7 {[%clk 0:02:51]} 9. Nbd2 {[%clk 0:02:41]}  Qe7 {[%clk 0:02:42]} 10. Ne1 {[%clk 0:02:37]}  h6 {[%clk 0:02:24]} 11. Bxf6 {[%clk 0:02:33]}  Nxf6 {[%clk 0:02:25]} 12. Nd3 {[%clk 0:02:29]}  Bd7 {[%clk 0:02:24]} 13. Qc2 {[%clk 0:02:19]}  Be8 {[%clk 0:02:22]} 14. c5 {[%clk 0:02:06]}  Bc7 {[%clk 0:02:18]} 15. Nf3 {[%clk 0:02:02]}  Bh5 {[%clk 0:02:14]} 16. Nfe5 {[%clk 0:01:56]}  Nd7 {[%clk 0:02:13]} 17. f4 {[%clk 0:01:49]}  Nxe5 {[%clk 0:02:01]} 18. fxe5 {[%clk 0:01:40]}  g5 {[%clk 0:02:01]} 19. b4 {[%clk 0:01:33]}  a5 {[%clk 0:01:37]} 20. a3 {[%clk 0:01:29]}  b5 {[%clk 0:01:36]} 21. cxb6 {[%clk 0:01:24]}  Bxb6 {[%clk 0:01:35]} 22. e3 {[%clk 0:01:24]}  Rfc8 {[%clk 0:01:29]} 23. Nc5 {[%clk 0:01:20]}  Bxc5 {[%clk 0:01:27]} 24. bxc5 {[%clk 0:01:16]}  Rcb8 {[%clk 0:01:23]} 25. Rab1 {[%clk 0:01:15]}  Qa7 {[%clk 0:01:23]} 26. Qa4 {[%clk 0:01:10]}  Qa6 {[%clk 0:01:11]} 27. Rfe1 {[%clk 0:01:07]}  Be2 {[%clk 0:01:10]} 28. Bf1 {[%clk 0:01:00]}  Bxf1 {[%clk 0:01:09]} 29. Rxf1 {[%clk 0:01:00]}  Kg7 {[%clk 0:00:59]} 30. Qc2 {[%clk 0:00:47]}  h5 {[%clk 0:00:47]} 31. h4 {[%clk 0:00:45]}  g4 {[%clk 0:00:45]} 32. Qd2 {[%clk 0:00:42]}  Rxb1 {[%clk 0:00:37]} 33. Rxb1 {[%clk 0:00:41]}  Rf8 {[%clk 0:00:35]} 34. e4 {[%clk 0:00:41]}  f4 {[%clk 0:00:34]} 35. exd5 {[%clk 0:00:37]}  cxd5 {[%clk 0:00:27]} 36. Rb6 {[%clk 0:00:34]}  Qc4 {[%clk 0:00:22]} 37. Rxe6 {[%clk 0:00:30]}  Qb3 {[%clk 0:00:22]} 38. gxf4 {[%clk 0:00:26]}  Qg3+ {[%clk 0:00:22]} 39. Kh1 {[%clk 0:00:25]}  Qxh4+ {[%clk 0:00:10]} 40. Qh2 {[%clk 0:00:22]}  Qe1+ {[%clk 0:00:10]} 41. Qg1 {[%clk 0:00:21]}  Qe4+ {[%clk 0:00:11]} 42. Qg2 {[%clk 0:00:16]}  Qxf4 {[%clk 0:00:11]} 43. Rf6 {[%clk 0:00:14]}  Rxf6 {[%clk 0:00:11]} 44. exf6+ {[%clk 0:00:13]}  Kxf6 {[%clk 0:00:09]} 45. Qxd5 {[%clk 0:00:13]}  Qf1+ {[%clk 0:00:09]} 46. Kh2 {[%clk 0:00:12]}  Qf2+ {[%clk 0:00:09]} 47. Kh1 {[%clk 0:00:12]}  g3 {[%clk 0:00:08]} 48. Qe5+ {[%clk 0:00:12]}  Kg6 {[%clk 0:00:08]} 49. Qe6+ {[%clk 0:00:12]}  Kg5 {[%clk 0:00:09]} 50. Qe5+ {[%clk 0:00:11]}  Kh4 {[%clk 0:00:08]} 51. Qe7+ {[%clk 0:00:11]}  Kg4 {[%clk 0:00:07]} 52. Qe6+ {[%clk 0:00:11]}  Kf3 {[%clk 0:00:07]} 53. Qf5+ {[%clk 0:00:11]}  Ke2 {[%clk 0:00:07]} 54. Qxh5+ {[%clk 0:00:11]}  Ke1 {[%clk 0:00:07]} 55. Qe5+ {[%clk 0:00:00]}  Kf1 {[%clk 0:00:08]} 0-1


[Site "https://www.chess.com"]

[Event "Titled Tuesday Blitz August 22 Late 2023"]
[White "Korchmar, Vasiliy"]
[Black "Sreyas Payyappat"]
[WhiteFideId "24131750"]
[BlackFideId "46674969"]
[WhiteElo "2664"]
[BlackElo "2520"]
[Result "1-0"]
[Round "8"]
[TimeControl "180+1"]
[Date "2023.08.22"]
[WhiteClock "0:00:05"]
[BlackClock "0:00:30"]
[Board "53"]

1. e4 {[%clk 0:03:00]}  c6 {[%clk 0:02:59]} 2. d4 {[%clk 0:03:00]}  d5 {[%clk 0:03:00]} 3. exd5 {[%clk 0:03:01]}  cxd5 {[%clk 0:03:01]} 4. Bd3 {[%clk 0:03:01]}  Nc6 {[%clk 0:03:02]} 5. c3 {[%clk 0:02:57]}  Qc7 {[%clk 0:03:01]} 6. h3 {[%clk 0:02:52]}  g6 {[%clk 0:02:59]} 7. Nf3 {[%clk 0:02:51]}  Bf5 {[%clk 0:02:56]} 8. O-O {[%clk 0:02:51]}  e5 {[%clk 0:02:54]} 9. Bxf5 {[%clk 0:02:41]}  gxf5 {[%clk 0:02:55]} 10. Nxe5 {[%clk 0:02:26]}  Nxe5 {[%clk 0:02:51]} 11. Bf4 {[%clk 0:02:13]}  f6 {[%clk 0:02:45]} 12. dxe5 {[%clk 0:02:12]}  fxe5 {[%clk 0:02:46]} 13. Bxe5 {[%clk 0:02:12]}  Qxe5 {[%clk 0:02:35]} 14. Re1 {[%clk 0:02:12]}  Qxe1+ {[%clk 0:02:34]} 15. Qxe1+ {[%clk 0:02:12]}  Be7 {[%clk 0:02:35]} 16. Qe5 {[%clk 0:02:03]}  Nf6 {[%clk 0:02:33]} 17. Qxf5 {[%clk 0:02:04]}  Rg8 {[%clk 0:02:31]} 18. Nd2 {[%clk 0:02:03]}  Kf7 {[%clk 0:02:28]} 19. Re1 {[%clk 0:02:03]}  Rae8 {[%clk 0:02:27]} 20. Nf3 {[%clk 0:02:02]}  Bd8 {[%clk 0:02:22]} 21. Ne5+ {[%clk 0:01:54]}  Kg7 {[%clk 0:02:19]} 22. Qg5+ {[%clk 0:01:49]}  Kf8 {[%clk 0:02:16]} 23. Qh6+ {[%clk 0:01:48]}  Rg7 {[%clk 0:02:15]} 24. f4 {[%clk 0:01:40]}  Kg8 {[%clk 0:02:09]} 25. g4 {[%clk 0:01:35]}  Nd7 {[%clk 0:02:05]} 26. Qd6 {[%clk 0:01:25]}  Rge7 {[%clk 0:01:46]} 27. Qxd5+ {[%clk 0:01:23]}  Kg7 {[%clk 0:01:44]} 28. Kf1 {[%clk 0:01:08]}  Bc7 {[%clk 0:01:39]} 29. Qxd7 {[%clk 0:00:45]}  Rxd7 {[%clk 0:01:32]} 30. Nxd7 {[%clk 0:00:46]}  Rxe1+ {[%clk 0:01:31]} 31. Kxe1 {[%clk 0:00:46]}  Bxf4 {[%clk 0:01:29]} 32. Nc5 {[%clk 0:00:31]}  Kf6 {[%clk 0:01:16]} 33. Nxb7 {[%clk 0:00:27]}  Kg5 {[%clk 0:01:15]} 34. Kf1 {[%clk 0:00:25]}  Bd2 {[%clk 0:01:11]} 35. Kg2 {[%clk 0:00:14]}  Kf4 {[%clk 0:01:11]} 36. Nc5 {[%clk 0:00:13]}  Ke3 {[%clk 0:01:09]} 37. Kg3 {[%clk 0:00:06]}  Be1+ {[%clk 0:01:06]} 38. Kg2 {[%clk 0:00:06]}  Bd2 {[%clk 0:01:07]} 39. g5 {[%clk 0:00:04]}  Bc1 {[%clk 0:01:01]} 40. b3 {[%clk 0:00:04]}  Kd2 {[%clk 0:00:56]} 41. c4 {[%clk 0:00:02]}  Kc3 {[%clk 0:00:56]} 42. Kf3 {[%clk 0:00:02]}  a5 {[%clk 0:00:44]} 43. h4 {[%clk 0:00:02]}  Ba3 {[%clk 0:00:41]} 44. Ne4+ {[%clk 0:00:02]}  Kb2 {[%clk 0:00:40]} 45. c5 {[%clk 0:00:03]}  Bxc5 {[%clk 0:00:26]} 46. Nxc5 {[%clk 0:00:03]}  Kxa2 {[%clk 0:00:27]} 47. h5 {[%clk 0:00:03]}  Ka3 {[%clk 0:00:27]} 48. g6 {[%clk 0:00:03]}  hxg6 {[%clk 0:00:28]} 49. hxg6 {[%clk 0:00:04]}  Kb4 {[%clk 0:00:29]} 50. Na6+ {[%clk 0:00:04]}  Kb5 {[%clk 0:00:29]} 51. g7 {[%clk 0:00:04]}  Kxa6 {[%clk 0:00:30]} 52. g8=Q {[%clk 0:00:05]}  Kb5 {[%clk 0:00:31]} 53. Qc4+ {[%clk 0:00:05]}  Kb6 {[%clk 0:00:30]} 54. Ke4 {[%clk 0:00:05]} 1-0


[Site "https://www.chess.com"]

[Event "Titled Tuesday Blitz August 22 Late 2023"]
[White "Mickiewicz, Piotr"]
[Black "Filipascu"]
[WhiteFideId "1114891"]
[WhiteElo "2512"]
[BlackElo "2643"]
[Result "0-1"]
[Round "8"]
[TimeControl "180+1"]
[Date "2023.08.22"]
[WhiteClock "0:00:05"]
[BlackClock "0:01:25"]
[Board "55"]

1. c4 {[%clk 0:03:00]}  Nf6 {[%clk 0:02:57]} 2. g3 {[%clk 0:03:00]}  e5 {[%clk 0:02:53]} 3. Bg2 {[%clk 0:03:00]}  Nc6 {[%clk 0:02:53]} 4. Nc3 {[%clk 0:02:59]}  Bb4 {[%clk 0:02:54]} 5. Nf3 {[%clk 0:02:55]}  Bxc3 {[%clk 0:02:54]} 6. bxc3 {[%clk 0:02:55]}  O-O {[%clk 0:02:54]} 7. d3 {[%clk 0:02:51]}  Re8 {[%clk 0:02:54]} 8. e4 {[%clk 0:02:51]}  d6 {[%clk 0:02:52]} 9. O-O {[%clk 0:02:49]}  a6 {[%clk 0:02:52]} 10. a4 {[%clk 0:02:46]}  Bd7 {[%clk 0:02:52]} 11. a5 {[%clk 0:02:45]}  h6 {[%clk 0:02:48]} 12. Ne1 {[%clk 0:02:44]}  b5 {[%clk 0:02:40]} 13. axb6 {[%clk 0:02:36]}  cxb6 {[%clk 0:02:41]} 14. Nc2 {[%clk 0:02:36]}  a5 {[%clk 0:02:41]} 15. Ne3 {[%clk 0:02:35]}  Ne7 {[%clk 0:02:38]} 16. Ba3 {[%clk 0:02:34]}  Qc7 {[%clk 0:02:36]} 17. Rb1 {[%clk 0:02:32]}  a4 {[%clk 0:02:34]} 18. Qd2 {[%clk 0:02:30]}  Reb8 {[%clk 0:02:30]} 19. Rb2 {[%clk 0:02:29]}  Ng4 {[%clk 0:02:24]} 20. Rfb1 {[%clk 0:02:21]}  Nxe3 {[%clk 0:02:22]} 21. Qxe3 {[%clk 0:02:22]}  Nc8 {[%clk 0:02:22]} 22. f4 {[%clk 0:02:19]}  f6 {[%clk 0:02:09]} 23. f5 {[%clk 0:02:16]}  b5 {[%clk 0:02:04]} 24. cxb5 {[%clk 0:02:14]}  Qxc3 {[%clk 0:02:04]} 25. Bb4 {[%clk 0:01:54]}  Qc7 {[%clk 0:02:04]} 26. Ba3 {[%clk 0:01:53]}  Qb6 {[%clk 0:02:01]} 27. Kf2 {[%clk 0:01:46]}  Ra5 {[%clk 0:01:54]} 28. Bf3 {[%clk 0:01:32]}  Qxe3+ {[%clk 0:01:52]} 29. Kxe3 {[%clk 0:01:33]}  Raxb5 {[%clk 0:01:52]} 30. Rxb5 {[%clk 0:01:25]}  Rxb5 {[%clk 0:01:53]} 31. Rxb5 {[%clk 0:01:25]}  Bxb5 {[%clk 0:01:54]} 32. d4 {[%clk 0:01:25]}  Nb6 {[%clk 0:01:43]} 33. Bb4 {[%clk 0:00:48]}  Nc4+ {[%clk 0:01:42]} 34. Kd3 {[%clk 0:00:48]}  a3 {[%clk 0:01:40]} 35. Bc3 {[%clk 0:00:39]}  a2 {[%clk 0:01:40]} 36. Kc2 {[%clk 0:00:34]}  Ba4+ {[%clk 0:01:38]} 37. Kc1 {[%clk 0:00:34]}  Ne3 {[%clk 0:01:21]} 38. dxe5 {[%clk 0:00:32]}  dxe5 {[%clk 0:01:21]} 39. Kb2 {[%clk 0:00:28]}  Nd1+ {[%clk 0:01:20]} 40. Bxd1 {[%clk 0:00:27]}  Bxd1 {[%clk 0:01:21]} 41. Kxa2 {[%clk 0:00:19]}  Bf3 {[%clk 0:01:21]} 42. Kb2 {[%clk 0:00:17]}  Bxe4 {[%clk 0:01:22]} 43. Kc1 {[%clk 0:00:16]}  Bxf5 {[%clk 0:01:22]} 44. Kd2 {[%clk 0:00:17]}  Kf7 {[%clk 0:01:22]} 45. Ke3 {[%clk 0:00:18]}  g5 {[%clk 0:01:22]} 46. Ba5 {[%clk 0:00:13]}  Ke6 {[%clk 0:01:21]} 47. Bd8 {[%clk 0:00:14]}  h5 {[%clk 0:01:22]} 48. h4 {[%clk 0:00:14]}  gxh4 {[%clk 0:01:21]} 49. gxh4 {[%clk 0:00:14]}  Bg4 {[%clk 0:01:22]} 50. Ke4 {[%clk 0:00:12]}  f5+ {[%clk 0:01:22]} 51. Ke3 {[%clk 0:00:12]}  f4+ {[%clk 0:01:23]} 52. Kf2 {[%clk 0:00:12]}  Kf5 {[%clk 0:01:23]} 53. Bc7 {[%clk 0:00:12]}  e4 {[%clk 0:01:24]} 54. Bb8 {[%clk 0:00:12]}  e3+ {[%clk 0:01:24]} 55. Kg2 {[%clk 0:00:12]}  Ke4 {[%clk 0:01:25]} 56. Bc7 {[%clk 0:00:09]}  f3+ {[%clk 0:01:25]} 57. Kg3 {[%clk 0:00:05]}  f2 {[%clk 0:01:25]} 0-1


[Site "https://www.chess.com"]